[Event "ONJK U25"]
[Site "Enschede, Netherlands"]
[Date "2022.08.08"]
[Round "1.1"]
[White "Gesthuizen, Ward"]
[Black "Van Roon, Sjoerd"]
[Result "1/2-1/2"]
[TimeControl "90min + 30sec/move"]
[WhiteElo "1600"]
[BlackElo "2310"]

1. d4 {[%clk 01:30:55]} {[%emt 00:00:05]} d5 {[%clk 01:30:54]} {[%emt
00:00:06]} 2. c4 {[%clk 01:31:19]} {[%emt 00:00:06]} c6 {[%clk 01:31:21]}
{[%emt 00:00:03]} 3. Nc3 {[%clk 01:31:42]} {[%emt 00:00:08]} Nf6 {[%clk
01:31:47]} {[%emt 00:00:03]} 4. Bg5 {[%clk 01:32:02]} {[%emt 00:00:10]} e6
{[%clk 01:30:18]} {[%emt 00:01:59]} 5. Nf3 {[%clk 01:32:09]} {[%emt 00:00:22]}
h6 {[%clk 01:30:07]} {[%emt 00:00:41]} 6. Bh4 {[%clk 01:32:25]} {[%emt
00:00:15]} Bd6 {[%clk 01:29:54]} {[%emt 00:00:43]} 7. e3 {[%clk 01:32:17]}
{[%emt 00:00:38]} Nbd7 {[%clk 01:29:54]} {[%emt 00:00:30]} 8. Bd3 {[%clk
01:30:22]} {[%emt 00:02:25]} O-O {[%clk 01:29:26]} {[%emt 00:00:57]} 9. O-O
{[%clk 01:30:35]} {[%emt 00:00:17]} dxc4 {[%clk 01:29:15]} {[%emt 00:00:42]} 10.
Bxc4 {[%clk 01:30:54]} {[%emt 00:00:11]} b5 {[%clk 01:29:00]} {[%emt 00:00:45]}
11. Bd3 {[%clk 01:29:39]} {[%emt 00:01:45]} a6 {[%clk 01:22:23]} {[%emt
00:07:07]} 12. Ne4 {[%clk 01:25:06]} {[%emt 00:05:02]} Be7 {[%clk 01:22:06]}
{[%emt 00:00:47]} 13. Rc1 {[%clk 01:23:42]} {[%emt 00:01:54]} Bb7 {[%clk
01:22:15]} {[%emt 00:00:21]} 14. Nc5 Nxc5 {[%clk 01:14:08]} 15. dxc5 {[%clk
01:19:57]} {[%emt 00:00:50]} Qd5 {[%clk 01:12:57]} {[%emt 00:01:41]} 16. Bb1
{[%clk 01:11:39]} {[%emt 00:08:49]} Qxd1 {[%clk 01:08:23]} {[%emt 00:05:04]} 17.
Rfxd1 {[%clk 01:11:34]} {[%emt 00:00:36]} Rfd8 {[%clk 01:08:47]} {[%emt
00:00:06]} 18. Re1 {[%clk 00:50:37]} {[%emt 00:21:27]} a5 {[%clk 00:55:05]}
{[%emt 00:14:11]} 19. e4 {[%clk 00:42:23]} {[%emt 00:08:43]} g5 {[%clk
00:54:51]} {[%emt 00:00:44]} 20. Bg3 {[%clk 00:41:57]} {[%emt 00:00:57]} Nd7
{[%clk 00:54:34]} {[%emt 00:00:47]} 21. Bc7 {[%clk 00:38:15]} {[%emt 00:04:12]}
Rdc8 {[%clk 00:54:46]} {[%emt 00:00:18]} 22. Bd6 {[%clk 00:38:29]} {[%emt
00:00:16]} Bxd6 {[%clk 00:55:13]} {[%emt 00:00:03]} 23. cxd6 {[%clk 00:38:53]}
{[%emt 00:00:06]} e5 {[%clk 00:55:40]} {[%emt 00:00:03]} 24. Red1 {[%clk
00:36:12]} {[%emt 00:03:11]} c5 {[%clk 00:51:30]} {[%emt 00:04:41]} 25. g4
{[%emt 00:11:04]} Ra6 {[%clk 00:46:30]} 26. Rd2 {[%clk 00:28:55]} {[%emt
00:02:43]} Kg7 {[%clk 00:46:12]} {[%emt 00:00:47]} 27. h4 {[%clk 00:25:18]}
{[%emt 00:04:07]} f6 {[%clk 00:44:30]} {[%emt 00:02:12]} 28. h5 {[%clk
00:22:54]} {[%emt 00:02:54]} c4 {[%clk 00:43:44]} {[%emt 00:01:16]} 29. Ne1
{[%clk 00:21:07]} {[%emt 00:02:17]} Nc5 {[%clk 00:35:40]} {[%emt 00:08:35]} 30.
f3 {[%clk 00:18:39]} {[%emt 00:02:58]} Rd8 {[%clk 00:35:09]} {[%emt 00:01:00]}
31. Rcd1 {[%clk 00:18:23]} {[%emt 00:00:46]} Bc8 {[%clk 00:33:59]} {[%emt
00:01:40]} 32. Ng2 {[%clk 00:17:33]} {[%emt 00:01:20]} Be6 {[%clk 00:32:44]}
{[%emt 00:01:45]} 33. Ne3 {[%clk 00:16:52]} {[%emt 00:01:11]} Nb7 {[%clk
00:32:21]} {[%emt 00:00:54]} 34. d7 {[%clk 00:13:06]} {[%emt 00:04:16]} Kf7
{[%clk 00:32:27]} {[%emt 00:00:24]} 35. Nf5 {[%clk 00:12:24]} {[%emt 00:01:12]}
Bxf5 {[%clk 00:32:32]} {[%emt 00:00:25]} 36. exf5 {[%clk 00:12:48]} {[%emt
00:00:06]} Ke7 {[%clk 00:31:30]} {[%emt 00:01:31]} 37. Be4 {[%clk 00:09:55]}
{[%emt 00:03:23]} Nd6 {[%clk 00:31:14]} {[%emt 00:00:46]} 38. a4 {[%clk
00:07:44]} {[%emt 00:02:42]} b4 {[%clk 00:27:13]} {[%emt 00:04:31]} 39. Bd5
{[%clk 00:06:05]} {[%emt 00:02:08]} c3 {[%clk 00:26:55]} {[%emt 00:00:48]} 40.
bxc3 {[%clk 00:04:27]} {[%emt 00:02:08]} bxc3 {[%clk 00:27:19]} {[%emt
00:00:07]} 41. Rc2 {[%clk 00:04:05]} {[%emt 00:00:52]} Rxd7 {[%clk 00:27:13]}
{[%emt 00:00:35]} 42. Rxc3 {[%clk 00:03:34]} {[%emt 00:01:01]} Ne8 {[%clk
00:25:18]} {[%emt 00:02:25]} 43. Bb3 {[%clk 00:03:02]} {[%emt 00:01:01]} Rxd1+
{[%clk 00:21:06]} {[%emt 00:04:43]} 44. Bxd1 {[%clk 00:03:22]} {[%emt
00:00:09]} Rb6 {[%clk 00:21:34]} {[%emt 00:00:03]} 45. Be2 {[%clk 00:03:07]}
{[%emt 00:00:45]} Rb2 {[%clk 00:21:11]} {[%emt 00:00:53]} 46. Bb5 {[%clk
00:03:04]} {[%emt 00:00:32]} Nd6 {[%clk 00:19:53]} {[%emt 00:01:48]} 47. Rc7+
{[%clk 00:03:06]} {[%emt 00:00:28]} Kf8 {[%clk 00:20:19]} {[%emt 00:00:04]} 48.
Rc6 {[%clk 00:01:19]} {[%emt 00:02:17]} Ke7 {[%clk 00:12:46]} {[%emt 00:08:03]}
49. Rc7+ {[%clk 00:01:37]} {[%emt 00:00:12]} Kf8 {[%clk 00:13:11]} {[%emt
00:00:05]} 1/2-1/2

[Event "ONJK U25"]
[Site "Enschede, Netherlands"]
[Date "2022.08.08"]
[Round "1.2"]
[White "Baselmans, Luuk"]
[Black "Smidt, Hana"]
[Result "1-0"]
[TimeControl "90min + 30sec/move"]
[WhiteElo "2256"]
[BlackElo "1594"]

1. e4 {[%emt 03:55:38]} c5 {[%emt 00:00:02]} 2. Nf3 {[%emt 00:00:14]} Nc6
{[%emt 00:00:14]} 3. Bb5 {[%emt 00:00:57]} d6 {[%emt 00:00:53]} 4. O-O {[%emt
00:00:17]} g6 {[%emt 00:00:40]} 5. c3 {[%emt 00:00:27]} Bg7 {[%emt 00:00:50]} 6.
d4 {[%emt 00:00:32]} cxd4 {[%emt 00:00:21]} 7. cxd4 {[%emt 00:00:07]} Bd7
{[%emt 00:00:07]} 8. Nc3 {[%emt 00:03:47]} a6 {[%emt 00:06:41]} 9. Ba4 {[%emt
00:02:10]} e5 {[%emt 00:05:38]} 10. Be3 {[%emt 00:02:42]} Nf6 {[%emt 00:06:27]}
11. dxe5 {[%emt 00:03:45]} Nxe5 {[%emt 00:01:14]} 12. Nxe5 {[%emt 00:03:32]}
dxe5 {[%emt 00:00:42]} 13. Bc5 {[%emt 00:04:30]} Bxa4 {[%emt 00:17:18]} 14.
Qxa4+ {[%emt 00:00:16]} Qd7 {[%emt 00:00:13]} 15. Qb3 {[%emt 00:03:32]} Bf8
{[%emt 00:05:25]} 16. Rad1 {[%emt 00:04:02]} Qc7 {[%emt 00:02:17]} 17. Bb6
{[%emt 00:01:34]} Qc6 {[%emt 00:05:16]} 18. Rc1 {[%emt 00:07:16]} Rc8 {[%emt
00:04:33]} 19. Be3 {[%emt 00:00:49]} Qd7 {[%emt 00:10:30]} 20. Rfd1 {[%emt
00:02:51]} Bd6 {[%emt 00:00:12]} 21. Nd5 {[%emt 00:01:11]} Nxd5 {[%emt
00:02:47]} 22. Rxc8+ {[%emt 00:00:08]} Qxc8 {[%emt 00:00:12]} 23. Qxd5 {[%emt
00:00:08]} Bc7 {[%emt 00:02:47]} 24. Bh6 {[%emt 00:02:55]} Ke7 {[%emt
00:01:06]} 25. Qc5+ {[%emt 00:02:00]} Kf6 {[%emt 00:02:41]} 26. Rd3 {[%emt
00:02:39]} g5 {[%emt 00:07:41]} 27. Bxg5+ {[%emt 00:02:35]} Kg7 {[%emt
00:02:33]} 28. Rg3 {[%emt 00:02:11]} f6 {[%emt 00:02:26]} 29. Qe7+ {[%emt
00:00:13]} Kg6 {[%emt 00:00:45]} 30. Qxf6+ {[%emt 00:00:14]} Kh5 {[%emt
00:00:08]} 31. Qf7# {[%emt 00:00:07]} 1-0

[Event "ONJK U25"]
[Site "Enschede, Netherlands"]
[Date "2022.08.08"]
[Round "1.3"]
[White "Nies, Levi"]
[Black "Boudry, William"]
[Result "0-1"]
[TimeControl "90min + 30sec/move"]
[WhiteElo "1570"]
[BlackElo "2115"]

1. e4 {[%clk 01:30:58]} {[%emt 00:00:02]} b6 {[%clk 01:30:44]} {[%emt
00:00:17]} 2. d4 {[%clk 01:31:10]} {[%emt 00:00:17]} Bb7 {[%clk 01:31:06]}
{[%emt 00:00:08]} 3. Nc3 {[%clk 01:30:36]} {[%emt 00:01:05]} e6 {[%clk
01:31:29]} {[%emt 00:00:07]} 4. a3 {[%clk 01:31:02]} {[%emt 00:00:04]} g6
{[%clk 01:31:04]} {[%emt 00:00:54]} 5. Bd3 {[%clk 01:26:41]} {[%emt 00:04:51]}
Bg7 {[%clk 01:31:26]} {[%emt 00:00:08]} 6. Be3 {[%clk 01:26:43]} {[%emt
00:00:29]} d6 {[%clk 01:31:22]} {[%emt 00:00:34]} 7. f4 {[%clk 01:25:41]}
{[%emt 00:01:31]} Nd7 {[%clk 01:28:55]} {[%emt 00:02:57]} 8. Nf3 {[%clk
01:25:47]} {[%emt 00:00:24]} Ne7 {[%clk 01:29:10]} {[%emt 00:00:15]} 9. O-O
{[%clk 01:24:53]} {[%emt 00:01:24]} O-O {[%clk 01:22:51]} {[%emt 00:06:49]} 10.
Qe1 {[%clk 01:18:11]} {[%emt 00:07:13]} a6 {[%clk 01:19:09]} {[%emt 00:04:12]}
11. Qh4 {[%clk 01:17:38]} {[%emt 00:01:03]} c5 {[%clk 01:13:42]} {[%emt
00:05:57]} 12. f5 {[%clk 01:00:29]} {[%emt 00:17:39]} Nc6 {[%clk 01:00:31]}
{[%emt 00:13:40]} 13. Qh3 {[%clk 00:51:10]} {[%emt 00:09:49]} exf5 {[%clk
00:44:08]} {[%emt 00:16:54]} 14. Bh6 {[%clk 00:48:31]} {[%emt 00:03:09]} Nxd4
{[%clk 00:19:29]} {[%emt 00:25:09]} 15. Ng5 {[%clk 00:45:03]} {[%emt 00:03:58]}
Re8 {[%clk 00:16:31]} {[%emt 00:03:28]} 16. Bxg7 {[%clk 00:40:07]} {[%emt
00:05:25]} Qxg5 {[%clk 00:16:50]} {[%emt 00:00:11]} 17. Bh6 {[%clk 00:34:02]}
{[%emt 00:06:35]} Qg4 {[%clk 00:16:22]} {[%emt 00:00:59]} 18. exf5 {[%clk
00:34:23]} {[%emt 00:00:09]} Qxh3 {[%clk 00:16:15]} {[%emt 00:00:37]} 19. gxh3
{[%clk 00:34:52]} Nf3+ {[%clk 00:13:18]} {[%emt 00:03:26]} 20. Kf2 {[%clk
00:35:03]} {[%emt 00:00:19]} Nxh2 {[%clk 00:13:22]} {[%emt 00:00:26]} 21. Rg1
{[%clk 00:35:25]} {[%emt 00:00:08]} Nf3 {[%clk 00:13:38]} {[%emt 00:00:14]} 22.
Rg3 {[%clk 00:34:26]} {[%emt 00:01:30]} Nfe5 {[%clk 00:13:35]} {[%emt
00:00:31]} 23. Be4 {[%clk 00:33:03]} {[%emt 00:01:54]} Bxe4 {[%clk 00:13:00]}
{[%emt 00:01:05]} 24. Nxe4 {[%clk 00:33:29]} {[%emt 00:00:04]} Nc4 {[%clk
00:13:18]} {[%emt 00:00:12]} 25. Nc3 {[%clk 00:32:27]} {[%emt 00:01:33]} Nxb2
{[%clk 00:12:43]} {[%emt 00:01:04]} 26. Bf4 {[%clk 00:30:42]} {[%emt 00:02:14]}
Nc4 {[%clk 00:11:56]} {[%emt 00:01:17]} 27. Nd5 {[%clk 00:31:12]} {[%emt
00:00:01]} Re4 {[%clk 00:11:41]} {[%emt 00:00:45]} 28. f6 {[%clk 00:30:08]}
{[%emt 00:01:34]} h5 {[%clk 00:10:22]} {[%emt 00:01:50]} 29. Re1 {[%clk
00:29:25]} {[%emt 00:01:13]} Rxe1 {[%clk 00:10:36]} {[%emt 00:00:15]} 30. Kxe1
{[%clk 00:29:54]} Re8+ {[%clk 00:10:58]} {[%emt 00:00:08]} 31. Ne7+ {[%emt
00:00:06]} Kh7 {[%clk 00:11:18]} {[%emt 00:00:06]} 32. Bg5 {[%clk 00:30:49]}
{[%emt 00:00:04]} b5 {[%clk 00:10:02]} {[%emt 00:01:46]} 33. Rd3 {[%clk
00:30:11]} {[%emt 00:01:08]} Nde5 {[%clk 00:10:24]} {[%emt 00:00:06]} 34. Rb3
{[%clk 00:30:07]} {[%emt 00:00:35]} Nc6 {[%clk 00:09:25]} {[%emt 00:01:29]} 35.
Kd1 {[%clk 00:30:36]} {[%emt 00:00:01]} Nd4 {[%clk 00:08:59]} {[%emt 00:00:56]}
36. Rg3 {[%clk 00:30:17]} {[%emt 00:00:49]} a5 {[%clk 00:07:49]} {[%emt
00:01:40]} 37. h4 {[%clk 00:29:01]} {[%emt 00:01:47]} a4 {[%clk 00:07:39]}
{[%emt 00:00:39]} 38. Rc3 {[%clk 00:29:02]} {[%emt 00:00:29]} Ra8 {[%clk
00:06:46]} {[%emt 00:01:22]} 39. Bf4 {[%clk 00:28:29]} {[%emt 00:01:05]} Ra6
{[%clk 00:05:12]} {[%emt 00:02:03]} 40. Nc8 {[%clk 00:28:29]} {[%emt 00:00:30]}
d5 {[%clk 00:05:17]} {[%emt 00:00:25]} 41. Bg5 {[%clk 00:27:40]} {[%emt
00:01:20]} b4 {[%clk 00:05:22]} {[%emt 00:00:24]} 0-1

[Event "ONJK U25"]
[Site "Enschede, Netherlands"]
[Date "2022.08.08"]
[Round "1.4"]
[White "Van Randtwijk, Mick"]
[Black "Heskes, Johan"]
[Result "0-1"]
[TimeControl "90min + 30sec/move"]
[WhiteElo "2057"]
[BlackElo "1566"]

1. e4 {[%emt 03:55:44]} e5 {[%emt 00:00:05]} 2. Nf3 {[%emt 00:00:18]} f5 {[%emt
00:00:07]} 3. d3 {[%emt 00:02:27]} d6 {[%emt 00:00:59]} 4. Nc3 {[%emt
00:01:23]} Nf6 {[%emt 00:00:32]} 5. g3 {[%emt 00:02:23]} Be7 {[%emt 00:00:58]}
6. Bg2 {[%emt 00:00:08]} O-O {[%emt 00:00:16]} 7. O-O {[%emt 00:00:35]} c5
{[%emt 00:02:58]} 8. b3 {[%emt 00:02:20]} Nc6 {[%emt 00:01:09]} 9. Nd2 {[%emt
00:02:32]} f4 {[%emt 00:01:18]} 10. Nc4 {[%emt 00:01:18]} g5 {[%emt 00:00:54]}
11. a4 {[%emt 00:02:13]} Nd4 {[%emt 00:01:37]} 12. f3 {[%emt 00:02:26]} h5
{[%emt 00:00:50]} 13. Ne2 {[%emt 00:02:45]} Nxe2+ {[%emt 00:03:48]} 14. Qxe2
{[%emt 00:00:06]} Be6 {[%emt 00:00:18]} 15. Kh1 {[%emt 00:02:43]} Qd7 {[%emt
00:00:49]} 16. Rg1 {[%emt 00:01:20]} Kf7 {[%emt 00:04:39]} 17. Bb2 {[%emt
00:03:44]} Rg8 {[%emt 00:04:23]} 18. gxf4 {[%emt 00:04:04]} gxf4 {[%emt
00:00:12]} 19. Rad1 {[%emt 00:00:07]} Rg5 {[%emt 00:00:51]} 20. h4 {[%emt
00:04:17]} Rg3 {[%emt 00:03:59]} 21. Bxe5 {[%emt 00:00:11]} Bxc4 {[%emt
00:01:34]} 22. Bxf6 {[%emt 00:00:11]} Bxf6 {[%emt 00:00:33]} 23. dxc4 {[%emt
00:00:05]} Rag8 {[%emt 00:00:10]} 24. Kh2 {[%emt 00:02:46]} Bd4 {[%emt
00:00:21]} 25. Rxd4 {[%emt 00:01:42]} cxd4 {[%emt 00:00:12]} 26. Qd2 {[%emt
00:00:37]} Qe6 {[%emt 00:00:50]} 27. Qxf4+ {[%emt 00:00:28]} Qf6 {[%emt
00:00:26]} 28. Qxg3 {[%emt 00:01:54]} Rxg3 {[%emt 00:00:19]} 29. Kxg3 {[%emt
00:00:03]} Ke6 {[%emt 00:00:40]} 30. Bh3+ {[%emt 00:00:55]} Ke5 {[%emt
00:00:35]} 31. Bf5 {[%emt 00:00:27]} Qh6 {[%emt 00:02:22]} 32. Kh3 {[%emt
00:04:31]} Qe3 {[%emt 00:02:05]} 33. Rg2 {[%emt 00:10:14]} Kf4 {[%emt
00:01:09]} 34. Bg6 {[%emt 00:02:06]} Qxf3+ {[%emt 00:01:13]} 35. Kh2 {[%emt
00:00:04]} Qd1 {[%emt 00:00:20]} 36. Bf5 {[%emt 00:00:54]} Qe1 {[%emt
00:00:17]} 37. Bg6 {[%emt 00:01:22]} Qxh4+ {[%emt 00:00:45]} 38. Kg1 {[%emt
00:00:03]} Qe1+ {[%emt 00:00:29]} 39. Kh2 {[%emt 00:00:04]} h4 {[%emt
00:00:10]} 40. Bf5 {[%emt 00:00:15]} b6 {[%emt 00:03:25]} 41. Bg6 {[%emt
00:00:33]} h3 {[%emt 00:00:33]} 42. Kxh3 {[%emt 00:00:17]} Qh1+ {[%emt
00:00:23]} 43. Rh2 {[%emt 00:00:05]} Qf3+ {[%emt 00:00:06]} 44. Kh4 {[%emt
00:00:03]} Qg4 {[%emt 00:00:08]} 0-1

[Event "ONJK U25"]
[Site "Enschede, Netherlands"]
[Date "2022.08.08"]
[Round "1.5"]
[White "Heijmans, Merlijn"]
[Black "Merkon, Oseb"]
[Result "0-1"]
[TimeControl "90min + 30sec/move"]
[WhiteElo "1466"]
[BlackElo "1954"]

1. e4 {[%clk 01:30:57]} {[%emt 00:00:03]} c5 {[%clk 01:30:58]} {[%emt
00:00:03]} 2. Nf3 {[%clk 01:31:22]} {[%emt 00:00:05]} Nc6 {[%clk 01:29:47]}
{[%emt 00:01:41]} 3. d4 {[%clk 01:31:34]} {[%emt 00:00:18]} cxd4 {[%clk
01:30:15]} {[%emt 00:00:02]} 4. Nxd4 {[%clk 01:31:54]} {[%emt 00:00:08]} Nf6
{[%clk 01:30:43]} {[%emt 00:00:04]} 5. Nc3 {[%clk 01:31:50]} {[%emt 00:00:33]}
e5 {[%clk 01:30:07]} {[%emt 00:01:07]} 6. Ndb5 {[%clk 01:30:26]} {[%emt
00:01:55]} d6 {[%clk 01:30:34]} {[%emt 00:00:03]} 7. Bg5 {[%clk 01:30:28]}
{[%emt 00:00:27]} a6 {[%clk 01:30:28]} {[%emt 00:00:36]} 8. Na3 {[%clk
01:30:49]} {[%emt 00:00:08]} Be7 {[%clk 01:29:53]} {[%emt 00:01:04]} 9. Bxf6
{[%clk 01:24:40]} {[%emt 00:06:39]} gxf6 {[%clk 01:21:42]} {[%emt 00:08:43]} 10.
Qd2 {[%clk 01:07:25]} {[%emt 00:17:45]} f5 {[%clk 01:21:18]} {[%emt 00:00:53]}
11. g3 {[%clk 01:02:50]} {[%emt 00:05:05]} fxe4 {[%clk 01:19:49]} {[%emt
00:02:00]} 12. Nxe4 {[%clk 01:00:48]} {[%emt 00:02:31]} d5 {[%clk 01:20:03]}
{[%emt 00:00:17]} 13. Nc3 {[%clk 01:00:38]} {[%emt 00:00:40]} Be6 {[%clk
01:15:07]} {[%emt 00:05:25]} 14. Bg2 {[%clk 00:54:42]} {[%emt 00:06:26]} Nd4
{[%clk 01:11:24]} {[%emt 00:04:13]} 15. Ne2 {[%clk 00:48:36]} {[%emt 00:06:35]}
Nxe2 {[%clk 01:04:30]} {[%emt 00:07:24]} 16. Qxe2 {[%clk 00:48:39]} {[%emt
00:00:26]} Qd6 {[%clk 00:44:52]} {[%emt 00:20:09]} 17. Rd1 {[%clk 00:42:23]}
{[%emt 00:06:47]} Rd8 {[%clk 00:42:28]} {[%emt 00:02:54]} 18. c3 {[%clk
00:35:42]} {[%emt 00:07:10]} O-O {[%clk 00:40:05]} {[%emt 00:02:53]} 19. Nc4
{[%clk 00:30:44]} {[%emt 00:05:28]} Qc7 {[%clk 00:28:41]} {[%emt 00:11:54]} 20.
Nxe5 {[%clk 00:29:14]} {[%emt 00:01:59]} Bf6 {[%clk 00:24:10]} {[%emt
00:05:02]} 21. f4 {[%clk 00:22:14]} {[%emt 00:07:30]} Rfe8 {[%clk 00:22:28]}
{[%emt 00:02:12]} 22. Qh5 {[%clk 00:19:48]} {[%emt 00:02:55]} Bxe5 {[%clk
00:18:49]} {[%emt 00:04:10]} 23. fxe5 {[%clk 00:18:53]} {[%emt 00:01:25]} f6
{[%clk 00:15:06]} {[%emt 00:04:13]} 24. O-O {[%clk 00:15:10]} {[%emt 00:04:14]}
fxe5 {[%clk 00:14:06]} {[%emt 00:01:30]} 25. Qg5+ {[%clk 00:11:00]} {[%emt
00:04:40]} Qg7 {[%clk 00:14:34]} {[%emt 00:00:01]} 26. Qf6 {[%clk 00:09:41]}
{[%emt 00:01:49]} b5 {[%clk 00:12:54]} {[%emt 00:02:10]} 27. Rde1 {[%clk
00:06:49]} {[%emt 00:03:22]} Qxf6 {[%clk 00:12:03]} {[%emt 00:01:21]} 28. Rxf6
{[%clk 00:07:09]} {[%emt 00:00:09]} Kg7 {[%clk 00:12:27]} {[%emt 00:00:07]} 29.
Rf3 {[%clk 00:05:15]} {[%emt 00:02:24]} Bf7 {[%clk 00:11:48]} {[%emt 00:01:09]}
30. Kf2 {[%clk 00:05:17]} {[%emt 00:00:28]} Bg6 {[%clk 00:11:46]} {[%emt
00:00:32]} 31. Rfe3 {[%clk 00:04:16]} {[%emt 00:01:31]} Rf8+ {[%clk 00:11:21]}
{[%emt 00:00:55]} 32. Ke2 {[%clk 00:04:11]} {[%emt 00:00:36]} Bh5+ {[%clk
00:11:26]} {[%emt 00:00:24]} 33. Bf3 {[%clk 00:04:17]} {[%emt 00:00:25]} Rxf3
{[%clk 00:11:47]} {[%emt 00:00:08]} 34. Rxf3 {[%clk 00:04:20]} {[%emt
00:00:27]} e4 {[%clk 00:12:15]} {[%emt 00:00:02]} 0-1

[Event "ONJK U25"]
[Site "Enschede, Netherlands"]
[Date "2022.08.08"]
[Round "1.6"]
[White "Kruimer, Matthias"]
[Black "Van Iersel, Yorn"]
[Result "1-0"]
[TimeControl "90min + 30sec/move"]
[WhiteElo "1766"]
[BlackElo "1419"]

1. e4 {[%emt 00:18:48]} e5 {[%emt 00:00:10]} 2. Nf3 {[%emt 00:00:22]} Nc6
{[%emt 00:00:08]} 3. d4 {[%emt 00:00:05]} exd4 {[%emt 00:00:27]} 4. Bc4 {[%emt
00:00:06]} Nf6 {[%emt 00:02:05]} 5. e5 {[%emt 00:00:09]} d5 {[%emt 00:00:07]} 6.
Bb5 {[%emt 00:00:08]} Ne4 {[%emt 00:00:23]} 7. Nxd4 {[%emt 00:00:34]} Bd7
{[%emt 00:07:09]} 8. Bxc6 {[%emt 00:01:03]} Bxc6 {[%emt 00:04:52]} 9. O-O
{[%emt 00:05:21]} Be7 {[%emt 00:03:57]} 10. Qg4 {[%emt 00:17:36]} Bg5 {[%emt
00:17:07]} 11. f4 {[%emt 00:02:36]} h5 {[%emt 00:00:26]} 12. Qf3 {[%emt
00:11:50]} Be7 {[%emt 00:04:07]} 13. Nc3 {[%emt 00:10:51]} Bc5 {[%emt
00:02:40]} 14. Nce2 {[%emt 00:04:48]} Bb5 {[%emt 00:01:50]} 15. c3 {[%emt
00:00:46]} Qd7 {[%emt 00:05:29]} 16. Be3 {[%emt 00:08:14]} O-O-O {[%emt
00:01:39]} 17. Kh1 {[%emt 00:05:34]} h4 {[%emt 00:02:06]} 18. Nxb5 {[%emt
00:09:06]} Qxb5 {[%emt 00:00:31]} 19. a4 {[%emt 00:01:34]} Qc6 {[%emt
00:01:54]} 20. a5 {[%emt 00:03:22]} Kb8 {[%emt 00:02:57]} 21. b4 {[%emt
00:02:07]} Bxe3 {[%emt 00:02:01]} 22. Qxe3 {[%emt 00:00:05]} Qg6 {[%emt
00:01:26]} 23. b5 {[%emt 00:01:36]} b6 {[%emt 00:04:48]} 24. c4 {[%emt
00:01:30]} d4 {[%emt 00:01:45]} 25. Nxd4 {[%emt 00:02:55]} Ng3+ {[%emt
00:00:22]} 26. Kg1 {[%emt 00:00:06]} Nxf1 {[%emt 00:00:28]} 27. Kxf1 {[%emt
00:01:01]} Rxd4 {[%emt 00:10:25]} 28. Qxd4 {[%emt 00:00:09]} Qe6 {[%emt
00:00:16]} 29. a6 {[%emt 00:02:18]} c6 {[%emt 00:01:54]} 30. Rd1 {[%emt
00:02:05]} Kc7 {[%emt 00:00:16]} 31. Qd6+ {[%emt 00:01:16]} Qxd6 {[%emt
00:00:12]} 32. Rxd6 {[%emt 00:00:09]} Rd8 {[%emt 00:00:19]} 33. Rxc6+ {[%emt
00:00:35]} Kb8 {[%emt 00:00:23]} 34. Ke2 {[%emt 00:00:24]} Rc8 {[%emt
00:00:15]} 35. Rxc8+ {[%emt 00:00:28]} Kxc8 {[%emt 00:00:04]} 36. Ke3 {[%emt
00:00:15]} Kd7 {[%emt 00:00:57]} 37. Ke4 {[%clk 00:07:37]} {[%emt 00:00:43]}
1-0